Workbook

Sheet ORÇAMENTO
A1: <---- NUMERAR SERVIÇOS PARA CPU | C1: Ministério do Desenvolvimento Regional
C2: Companhia de Desenvolvimento dos Vales do São Francisco e do Parnaíba
C3: 1ª Superintendência Regional
B5: OBRA: | C5: PASSAGEM MOLHADA DA PRAINHA - RIO MOSQUITO (ESTRADA PARA TALHADO - SERRANÓPOLIS DE MINAS/MG)
B6: DATA: | C6: AGOSTO / 2.021 | G6: BDI Serviços: | I6: ='BDI SERV'!D31/100 -> 0.2247
B7: PRAZO DE EXECUÇÃO: 90 DIAS
B8: ITEM | C8: DISCRIMINAÇÃO | D8: REFER. | E8: UNID. | F8: QUANT. | G8: P. UNITÁRIO | H8: P.UNIT.C/ BDI | I8: P. TOTAL
A9: A | B9: 1 | C9: SERVIÇOS PRELIMINARES | I9: =SUM(I10:I14) -> 30451.4
A10: 1 | B10: 1.1 | C10: MOBILIZAÇÃO E DESMOBILIZAÇÃO | D10: CPU.1 | E10: GL | F10: 1 | G10: =VLOOKUP(A10,CPU!$A$1:$N$4589,9) -> 4184 | H10: =VLOOKUP(A10,CPU!$A$1:$N$4589,10) -> 5124.1448 | I10: =ROUND(F10*H10,2) -> 5124.14
A11: 2 | B11: 1.2 | C11: ADMINISTRAÇÃO LOCAL | D11: CPU.2 | E11: GL | F11: 1 | G11: =VLOOKUP(A11,CPU!$A$1:$N$4589,9) -> 13565.3 | H11: =VLOOKUP(A11,CPU!$A$1:$N$4589,10) -> 16613.42291 | I11: =ROUND(F11*H11,2) -> 16613.42
A12: 3 | B12: 1.3 | C12: CANTEIRO DE OBRAS | D12: CPU.3 | E12: GL | F12: 1 | G12: =VLOOKUP(A12,CPU!$A$1:$N$4589,9) -> 1755 | H12: =VLOOKUP(A12,CPU!$A$1:$N$4589,10) -> 2149.3485 | I12: =ROUND(F12*H12,2) -> 2149.35
A13: 4 | B13: 1.4 | C13: PLACA DE OBRA EM CHAPA DE AÇO GALVANIZADO | D13: 74209/001 | E13: M2 | F13: 2 | G13: =VLOOKUP(A13,CPU!$A$1:$N$4589,9) -> 465.94 | H13: =VLOOKUP(A13,CPU!$A$1:$N$4589,10) -> 570.636718 | I13: =ROUND(F13*H13,2) -> 1141.27
A14: 5 | B14: 1.5 | C14: LOCACAO CONVENCIONAL DE OBRA, UTILIZANDO GABARITO DE TÁBUAS CORRIDAS PONTALETADAS A CADA 2,00M | D14: 99059 | E14: M | F14: 70 | G14: =VLOOKUP(A14,CPU!$A$1:$N$4589,9) -> 63.26 | H14: =VLOOKUP(A14,CPU!$A$1:$N$4589,10) -> 77.474522 | I14: =ROUND(F14*H14,2) -> 5423.22
A15: B | B15: 2 | C15: TERRAPLANAGEM E ESTRUTURA | I15: =SUM(I16:I28) -> 122401.21
A16: 6 | B16: 2.1 | C16: ESCAVAÇÃO HORIZONTAL EM SOLO DE 1A CATEGORIA | D16: 101116 | E16: M3 | F16: 129.9962 | G16: =VLOOKUP(A16,CPU!$A$1:$N$4589,9) -> 1.62 | H16: =VLOOKUP(A16,CPU!$A$1:$N$4589,10) -> 1.984014 | I16: =ROUND(F16*H16,2) -> 257.91
A17: 7 | B17: 2.2 | C17: ESCAVAÇÃO MANUAL PARA BLOCO DE COROAMENTO OU SAPATA, SEM PREVISÃO DE FÔRMA | D17: 96522 | E17: M3 | F17: 4 | G17: =VLOOKUP(A17,CPU!$A$1:$N$4589,9) -> 117.29 | H17: =VLOOKUP(A17,CPU!$A$1:$N$4589,10) -> 143.645063 | I17: =ROUND(F17*H17,2) -> 574.58
A18: 8 | B18: 2.2 | C18: CARGA, MANOBRA E DESCARGA DE SOLOS E MATERIAIS GRANULARES EM CAMINHÃO BASCULANTE - CARGA COM PÁ CARREGADEIRA E DESCARGA LIVRE | D18: 100976 | E18: M3 | F18: 129.9962 | G18: =VLOOKUP(A18,CPU!$A$1:$N$4589,9) -> 6.14 | H18: =VLOOKUP(A18,CPU!$A$1:$N$4589,10) -> 7.519658 | I18: =ROUND(F18*H18,2) -> 977.53
A19: 9 | B19: 2.3 | C19: PREPARO DE FUNDO DE VALA COM LARGURA MAIOR OU IGUAL A 1,5 M (ACERTO DO SOLO NATURAL) | D19: 101617 | E19: M2 | F19: 140 | G19: =VLOOKUP(A19,CPU!$A$1:$N$4589,9) -> 2.37 | H19: =VLOOKUP(A19,CPU!$A$1:$N$4589,10) -> 2.902539 | I19: 406.36
A20: 10 | B20: 2.4 | C20: LASTRO DE BRITA, ESPESSURA 5CM | D20: 96622 | E20: M3 | F20: 7 | G20: =VLOOKUP(A20,CPU!$A$1:$N$4589,9) -> 131.83 | H20: =VLOOKUP(A20,CPU!$A$1:$N$4589,10) -> 161.452201 | I20: 1130.17
A21: 11 | B21: 2.5 | C21: FABRICAÇÃO, MONTAGEM E DESMONTAGEM DE FÔRMA PARA VIGAS EM CHAPA DE MADEIRA COMPENSADA RESINADA, E=17 MM | D21: 96542 | E21: M2 | F21: 170 | G21: =VLOOKUP(A21,CPU!$A$1:$N$4589,9) -> 79.55 | H21: =VLOOKUP(A21,CPU!$A$1:$N$4589,10) -> 97.424885 | I21: 16562.23
A22: 12 | B22: 2.6 | C22: ARMAÇÃO DE BLOCO, VIGA BALDRAME E SAPATA UTILIZANDO AÇO CA-60 DE 4.2 OU 5 MM - MONTAGEM | D22: 96543 | E22: KG | F22: 230.003 | G22: =VLOOKUP(A22,CPU!$A$1:$N$4589,9) -> 20.34 | H22: =VLOOKUP(A22,CPU!$A$1:$N$4589,10) -> 24.910398 | I22: 5729.47
A23: 13 | B23: 2.7 | C23: ARMAÇÃO DE BLOCO, VIGA BALDRAME OU SAPATA UTILIZANDO AÇO CA-50 DE 10MM - MONTAGEM | D23: 96546 | E23: KG | F23: 299.998 | G23: =VLOOKUP(A23,CPU!$A$1:$N$4589,9) -> 16.79 | H23: =VLOOKUP(A23,CPU!$A$1:$N$4589,10) -> 20.562713 | I23: 6168.77
A24: 14 | B24: 2.8 | C24: CONCRETO FCK = 25MPA - PREPARO MECÂNICO COM BETONEIRA | D24: 94965 | E24: M3 | F24: 140 | G24: =VLOOKUP(A24,CPU!$A$1:$N$4589,9) -> 394.17 | H24: =VLOOKUP(A24,CPU!$A$1:$N$4589,10) -> 482.739999 | I24: 67583.6
A25: 15 | B25: 2.9 | C25: ENSECADEIRA COM SACOS DE RÁFIA, INCLUSIVE FORNECIMENTO DO MATERIAL DE ENCHIMENTO | D25: C2767a | E25: M3 | F25: 16 | G25: =VLOOKUP(A25,CPU!$A$1:$N$4589,9) -> 186.26 | H25: =VLOOKUP(A25,CPU!$A$1:$N$4589,10) -> 228.112622 | I25: =ROUND(F25*H25,2) -> 3649.8
A26: 16 | B26: 2.10 | C26: LANÇAMENTO COM USO DE BOMBA, ADENSAMENTO E ACABAMENTO DE CONCRETO EM ESTRUTURAS | D26: 92874 | E26: M3 | F26: 140 | G26: =VLOOKUP(A26,CPU!$A$1:$N$4589,9) -> 27.64 | H26: =VLOOKUP(A26,CPU!$A$1:$N$4589,10) -> 33.850708 | I26: 4739.1
A27: 17 | B27: 2.11 | C27: TUBO DE CONCRETO DIÂMETRO DE 800 MM, JUNTA RÍGIDA - FORNECIMENTO E ASSENTAMENTO | D27: 92214 | E27: M | F27: 20 | G27: =VLOOKUP(A27,CPU!$A$1:$N$4589,9) -> 459.15 | H27: =VLOOKUP(A27,CPU!$A$1:$N$4589,10) -> 562.321005 | I27: =ROUND(F27*H27,2) -> 11246.42
A28: 18 | B28: 2.10 | C28: TRANSPORTE COM CAMINHÃO BASCULANTE DE 18 M3, EM VIA URBANA PAVIMENTADA | D28: 95427 | E28: M3XKM | F28: 5199.9972 | G28: =VLOOKUP(A28,CPU!$A$1:$N$4589,9) -> 0.53 | H28: =VLOOKUP(A28,CPU!$A$1:$N$4589,10) -> 0.649091 | I28: =ROUND(F28*H28,2) -> 3375.27
A29: c | B29: 3 | C29: OBRAS COMPLEMENTARES | I29: =SUM(I30:I30) -> 631.31
A30: 19 | B30: 3.1 | C30: ATERRO MANUAL COM COMPACTAÇÃO MECANIZADA | D30: 94319 | E30: M3 | F30: 14 | G30: =VLOOKUP(A30,CPU!$A$1:$N$4589,9) -> 36.82 | H30: =VLOOKUP(A30,CPU!$A$1:$N$4589,10) -> 45.093454 | I30: =ROUND(F30*H30,2) -> 631.31
B31: TOTAL GERAL DA OBRA COM BDI | I31: =SUM(I9,I15,I29) -> 153483.92

Sheet CPU
A1: 1 | B1: CODEVASF | E1: COMPOSIÇÃO DE PREÇO UNITÁRIO | I1: =H10 -> 4184 | J1: =H12 -> 5124.1448 | K1: BDI CALCULADO: | M1: =ORÇAMENTO!I6 -> 0.2247
B2: OBRA: | C2: =ORÇAMENTO!C5 -> PASSAGEM MOLHADA DA PRAINHA - RIO MOSQUITO (ESTRADA PARA TALHADO - SERRANÓPOLIS DE MINAS/MG) | G2: DATA: | H2: =ORÇAMENTO!C6 -> AGOSTO / 2.021 | K2: BDI DIFERENCIADO: | M2: =#REF!/100 -> 
B3: SERVIÇO: | C3: =VLOOKUP(A1,ORÇAMENTO!A10:I30,3) -> MOBILIZAÇÃO E DESMOBILIZAÇÃO | E3: Referência: | F3: =VLOOKUP(A1,ORÇAMENTO!A10:I30,4) -> CPU.1 | G3: UNIDADE: | H3: =VLOOKUP(A1,ORÇAMENTO!A10:I30,5) -> GL
B5: TIPO ITEM | C5: CODIGO ITEM | D5: DESCRIÇÃO ITEM | E5: UNIDADE ITEM | F5: COEFICIENTE | G5: PRECO UNITARIO | H5: CUSTO TOTAL
B6: COMPOSICAO | C6: 89876 | D6: CAMINHÃO BASCULANTE 14 M3, COM CAVALO MECÂNICO DE CAPACIDADE MÁXIMA DE TRAÇÃO COMBINADO DE 36000 KG, POTÊNCIA 286 CV, INCLUSIVE SEMIREBOQUE COM CAÇAMBA METÁLICA | E6: CHP DIURNO. | F6: 16 | G6: 227,53 | H6: =ROUNDDOWN(F6*G6,2) -> 3640.48
B7: COMPOSICAO | C7: 89877 | D7: CAMINHÃO BASCULANTE 14 M3, COM CAVALO MECÂNICO DE CAPACIDADE MÁXIMA DE TRAÇÃO COMBINADO DE 36000 KG, POTÊNCIA 286 CV, INCLUSIVE SEMIREBOQUE COM CAÇAMBA METÁLICA | E7: CHI DIURNO. | F7: 8 | G7: 52,23 | H7: =ROUNDDOWN(F7*G7,2) -> 417.84
B8: COMPOSIÇÃO | C8: 88316 | D8: SERVENTE COM ENCARGOS COMPLEMENTARES | E8: H | F8: 8 | G8: 15.71 | H8: 125.68
B9: PRODUÇÃO DA EQUIPE | E9: 1 | F9: CUSTO | H9: =SUM(H6:H8) -> 4184
B10: TOTAL | H10: =H9/E9 -> 4184
B11: BDI % | H11: =1+$M$1 -> 1.2247
B12: TOTAL DO SERVIÇO - R$ | H12: =H10*H11 -> 5124.1448
A14: =A1+1 -> 2 | B14: CODEVASF | E14: COMPOSIÇÃO DE PREÇO UNITÁRIO | I14: =H26 -> 13565.3 | J14: =H28 -> 16613.42291
B15: OBRA: | C15: =$C$2 -> PASSAGEM MOLHADA DA PRAINHA - RIO MOSQUITO (ESTRADA PARA TALHADO - SERRANÓPOLIS DE MINAS/MG) | G15: DATA: | H15: =$H$2 -> AGOSTO / 2.021 | I15: CALCULAR ÍNDICES PELO PORTE DA OBRA
B16: SERVIÇO: | C16: =VLOOKUP(A14,ORÇAMENTO!$A$10:$I$30,3) -> ADMINISTRAÇÃO LOCAL | E16: SINAPI | F16: CPU | G16: UNIDADE: | H16: =VLOOKUP(A14,ORÇAMENTO!$A$10:$I$30,5) -> GL
B18: TIPO ITEM | C18: CODIGO ITEM | D18: DESCRIÇÃO ITEM | E18: UNIDADE ITEM | F18: COEFICIENTE | G18: PRECO UNITARIO | H18: CUSTO TOTAL
B19: INSUMO | C19: 14250 | D19: ENERGIA ELÉTRICA | E19: kwh | F19: 90 | G19: 0.94 | H19: =ROUNDDOWN(F19*G19,2) -> 84.6
B20: INSUMO | C20: 14583 | D20: ÁGUA/ESGOTO | E20: m³ | F20: 6 | G20: 17.78 | H20: 106.68
B21: COTAÇÃO | C21: MERC. | D21: TELEFONE (PLANO CONTROLE) | E21: UNID | F21: 2 | G21: 50 | H21: 100
B22: COMPOSICAO | C22: 90777 | D22: Engenheiro Civil Júnior com encargos complementares | E22: H | F22: 27.5 | G22: 93.29 | H22: 2565.47
B23: COMPOSICAO | C23: 90776 | D23: Encarregado Geral com encargos complementares | E23: H | F23: =220/3 -> 73.33333333 | G23: 41.04 | H23: 3009.6
B24: COMPOSICAO | C24: 90772 | D24: Auxiliar de escritório com encargos complementares | E24: H | F24: 55 | G24: 16.66 | H24: 916.3
B25: PRODUÇÃO DA EQUIPE | E25: 0.5 | F25: CUSTO | H25: =SUM(H19:H24) -> 6782.65
B26: TOTAL | H26: =H25/E25 -> 13565.3
B27: BDI % | H27: =1+$M$1 -> 1.2247
B28: TOTAL DO SERVIÇO - R$ | H28: =H26*H27 -> 16613.42291
A30: =A14+1 -> 3 | B30: CODEVASF | E30: COMPOSIÇÃO DE PREÇO UNITÁRIO | I30: =H37 -> 1755 | J30: =H39 -> 2149.3485
B31: OBRA: | C31: =$C$2 -> PASSAGEM MOLHADA DA PRAINHA - RIO MOSQUITO (ESTRADA PARA TALHADO - SERRANÓPOLIS DE MINAS/MG) | G31: DATA: | H31: =$H$2 -> AGOSTO / 2.021 | I31: QUANTIDADES PELO PORTE E PRAZO DA OBRA
B32: SERVIÇO: | C32: =VLOOKUP(A30,ORÇAMENTO!$A$10:$I$30,3) -> CANTEIRO DE OBRAS | E32: SINAPI | F32: =VLOOKUP(A30,ORÇAMENTO!$A$10:$I$30,4) -> CPU.3 | G32: UNIDADE: | H32: =VLOOKUP(A30,ORÇAMENTO!$A$10:$I$30,5) -> GL
B34: TIPO ITEM | C34: CODIGO ITEM | D34: DESCRIÇÃO ITEM | E34: UNIDADE ITEM | F34: COEFICIENTE | G34: PRECO UNITARIO | H34: CUSTO TOTAL
B35: COTAÇÃO | C35: 10775 | D35: ALUGUEL DE IMÓVEL OU CONTEINER QUE ATENDA AOS REQUISITOS MÍNIMOS PARA INSTALAÇÃO DO CANTEIRO DE OBRAS | E35: MÊS | F35: 3 | G35: 585 | H35: =ROUNDDOWN(F35*G35,2) -> 1755
B36: PRODUÇÃO DA EQUIPE | E36: 1 | F36: CUSTO | H36: =SUM(H35:H35) -> 1755
B37: TOTAL | H37: =H36/E36 -> 1755
B38: BDI % | H38: =1+$M$1 -> 1.2247
B39: TOTAL DO SERVIÇO - R$ | H39: =H37*H38 -> 2149.3485
A41: =A30+1 -> 4 | B41: CODEVASF | E41: COMPOSIÇÃO DE PREÇO UNITÁRIO | I41: =H54 -> 465.94 | J41: =H56 -> 570.636718
B42: OBRA: | C42: =$C$2 -> PASSAGEM MOLHADA DA PRAINHA - RIO MOSQUITO (ESTRADA PARA TALHADO - SERRANÓPOLIS DE MINAS/MG) | G42: DATA: | H42: =$H$2 -> AGOSTO / 2.021
B43: SERVIÇO: | C43: =VLOOKUP(A41,ORÇAMENTO!$A$10:$I$30,3) -> PLACA DE OBRA EM CHAPA DE AÇO GALVANIZADO | E43: SINAPI | F43: =VLOOKUP(A41,ORÇAMENTO!$A$10:$I$30,4) -> 74209/001 | G43: UNIDADE: | H43: =VLOOKUP(A41,ORÇAMENTO!$A$10:$I$30,5) -> M2
B45: TIPO ITEM | C45: CODIGO ITEM | D45: DESCRIÇÃO ITEM | E45: UNIDADE ITEM | F45: COEFICIENTE | G45: PRECO UNITARIO | H45: CUSTO TOTAL
B46: INSUMO | C46: 4417 | D46: SARRAFO DE MADEIRA NAO APARELHADA *2,5 X 7* CM, MACARANDUBA, ANGELIM OU EQUIVALENTE DA REGIAO | E46: M | F46: 1,0000000 | G46: 12.04 | H46: =ROUNDDOWN(F46*G46,2) -> 12.04
B47: INSUMO | C47: 4491 | D47: PONTALETE DE MADEIRA NAO APARELHADA *7,5 X 7,5* CM (3 X 3 ") PINUS, MISTA OU EQUIVALENTE DA REGIAO | E47: M | F47: 4,0000000 | G47: 6.38 | H47: 25.52
B48: INSUMO | C48: 4813 | D48: PLACA DE OBRA (PARA CONSTRUCAO CIVIL) EM CHAPA GALVANIZADA *N. 22*, ADESIVADA, DE *2,0 X 1,125* M | E48: M2 | F48: 1,0000000 | G48: 370 | H48: 370
B49: INSUMO | C49: 5075 | D49: PREGO DE ACO POLIDO COM CABECA 18 X 30 (2 3/4 X 10) | E49: KG | F49: 0,1100000 | G49: 18.59 | H49: 2.04
B50: COMPOSICAO | C50: 88262 | D50: CARPINTEIRO DE FORMAS COM ENCARGOS COMPLEMENTARES | E50: H | F50: 1,0000000 | G50: 21.87 | H50: 21.87
B51: COMPOSICAO | C51: 88316 | D51: SERVENTE COM ENCARGOS COMPLEMENTARES | E51: H | F51: 2,0000000 | G51: 15.71 | H51: 31.42
B52: COMPOSICAO | C52: 94962 | D52: CONCRETO MAGRO PARA LASTRO, TRAÇO 1:4,5:4,5 (CIMENTO/ AREIA MÉDIA/ BRITA 1) - PREPARO MECÂNICO COM BETONEIRA 400 L | E52: M3 | F52: 0,0100000 | G52: 305.63 | H52: 3.05
B53: PRODUÇÃO DA EQUIPE | E53: 1 | F53: CUSTO | H53: =SUM(H46:H52) -> 465.94
B54: TOTAL | H54: =H53/E53 -> 465.94
B55: BDI % | H55: =1+$M$1 -> 1.2247
B56: TOTAL DO SERVIÇO - R$ | H56: =H54*H55 -> 570.636718
A58: =A41+1 -> 5 | B58: CODEVASF | E58: COMPOSIÇÃO DE PREÇO UNITÁRIO | I58: =H75 -> 63.26 | J58: =H77 -> 77.474522
B59: OBRA: | C59: =$C$2 -> PASSAGEM MOLHADA DA PRAINHA - RIO MOSQUITO (ESTRADA PARA TALHADO - SERRANÓPOLIS DE MINAS/MG) | G59: DATA: | H59: =$H$2 -> AGOSTO / 2.021
B60: SERVIÇO: | C60: =VLOOKUP(A58,ORÇAMENTO!$A$10:$I$30,3) -> LOCACAO CONVENCIONAL DE OBRA, UTILIZANDO GABARITO DE TÁBUAS CORRIDAS PONTALETADAS A CADA 2,00M | E60: SINAPI | F60: =VLOOKUP(A58,ORÇAMENTO!$A$10:$I$30,4) -> 99059 | G60: UNIDADE: | H60: =VLOOKUP(A58,ORÇAMENTO!$A$10:$I$30,5) -> M
B62: TIPO ITEM | C62: CODIGO ITEM | D62: DESCRIÇÃO ITEM | E62: UNIDADE ITEM | F62: COEFICIENTE | G62: PRECO UNITARIO | H62: CUSTO TOTAL
B63: INSUMO | C63: 4417 | D63: SARRAFO NAO APARELHADO *2,5 X 7* CM, EM MACARANDUBA, ANGELIM OU EQUIVALENTE DA REGIAO - BRUTA | E63: M | F63: 0,7445000 | G63: 13,06 | H63: =ROUNDDOWN(F63*G63,2) -> 9.72
B64: INSUMO | C64: 4433 | D64: CAIBRO NAO APARELHADO *7,5 X 7,5* CM, EM MACARANDUBA, ANGELIM OU EQUIVALENTE DA REGIAO - BRUTA | E64: M | F64: 0,4125000 | G64: 46,93 | H64: 19.35
B65: INSUMO | C65: 5068 | D65: PREGO DE ACO POLIDO COM CABECA 17 X 21 (2 X 11) | E65: KG | F65: 0,1110000 | G65: 18,62 | H65: 2.06
B66: INSUMO | C66: 7356 | D66: TINTA ACRILICA PREMIUM, COR BRANCO FOSCO | E66: L | F66: 0,0256000 | G66: 20,69 | H66: 0.52
B67: INSUMO | C67: 10567 | D67: TABUA *2,5 X 23* CM EM PINUS, MISTA OU EQUIVALENTE DA REGIAO - BRUTA | E67: M | F67: 0,5500000 | G67: 8,17 | H67: 4.49
B68: COMPOSICAO | C68: 88239 | D68: AJUDANTE DE CARPINTEIRO COM ENCARGOS COMPLEMENTARES | E68: H | F68: 0,3563000 | G68: 18,07 | H68: 6.43
B69: COMPOSICAO | C69: 88262 | D69: CARPINTEIRO DE FORMAS COM ENCARGOS COMPLEMENTARES | E69: H | F69: 0,7125000 | G69: 21,87 | H69: 15.58
B70: COMPOSICAO | C70: 91692 | D70: SERRA CIRCULAR DE BANCADA COM MOTOR ELÉTRICO POTÊNCIA DE 5HP, COM COIFA PARA DISCO 10" | E70: CHP | F70: 0,0039000 | G70: 23,89 | H70: 0.09
B71: COMPOSICAO | C71: 91693 | D71: SERRA CIRCULAR DE BANCADA COM MOTOR ELÉTRICO POTÊNCIA DE 5HP, COM COIFA PARA DISCO 10" | E71: CHI | F71: 0,0168000 | G71: 20,47 | H71: 0.34
B72: COMPOSICAO | C72: 94974 | D72: CONCRETO MAGRO PARA LASTRO, TRAÇO 1:4,5:4,5 (EM MASSA SECA DE CIMENTO/ AREIA MÉDIA/ BRITA 1) | E72: M3 | F72: 0,0046000 | G72: 350,25 | H72: 1.61
B73: COMPOSICAO | C73: 99062 | D73: MARCAÇÃO DE PONTOS EM GABARITO OU CAVALETE | E73: UN | F73: 1,5000000 | G73: 2,05 | H73: 3.07
B74: PRODUÇÃO DA EQUIPE | E74: 1 | F74: CUSTO | H74: =SUM(H63:H73) -> 63.26
B75: TOTAL | H75: =H74/E74 -> 63.26
B76: BDI % | H76: =1+$M$1 -> 1.2247
B77: TOTAL DO SERVIÇO - R$ | H77: =H75*H76 -> 77.474522
A79: =A58+1 -> 6 | B79: CODEVASF | E79: COMPOSIÇÃO DE PREÇO UNITÁRIO | I79: =H88 -> 1.62 | J79: =H90 -> 1.984014
B80: OBRA: | C80: =$C$2 -> PASSAGEM MOLHADA DA PRAINHA - RIO MOSQUITO (ESTRADA PARA TALHADO - SERRANÓPOLIS DE MINAS/MG) | G80: DATA: | H80: =$H$2 -> AGOSTO / 2.021 | J80: =H91 -> 0
B81: SERVIÇO: | C81: =VLOOKUP(A79,ORÇAMENTO!$A$10:$I$30,3) -> ESCAVAÇÃO HORIZONTAL EM SOLO DE 1A CATEGORIA | E81: SINAPI | F81: =VLOOKUP(A79,ORÇAMENTO!$A$10:$I$30,4) -> 101116 | G81: UNIDADE: | H81: =VLOOKUP(A79,ORÇAMENTO!$A$10:$I$30,5) -> M3
B83: TIPO ITEM | C83: CODIGO ITEM | D83: DESCRIÇÃO ITEM | E83: UNIDADE ITEM | F83: COEFICIENTE | G83: PRECO UNITARIO | H83: CUSTO TOTAL
B84: COMPOSICAO | C84: 5847 | D84: TRATOR DE ESTEIRAS, POTÊNCIA 170 HP, PESO OPERACIONAL 19 T, CAÇAMBA 5,2 M3 | E84: CHP | F84: 0,0048000 | G84: 196,22 | H84: =ROUNDDOWN(F84*G84,2) -> 0.94
B85: COMPOSICAO | C85: 5849 | D85: TRATOR DE ESTEIRAS, POTÊNCIA 170 HP, PESO OPERACIONAL 19 T, CAÇAMBA 5,2 M3 | E85: CHI | F85: 0,0082000 | G85: 59,09 | H85: 0.48
B86: COMPOSICAO | C86: 88316 | D86: SERVENTE COM ENCARGOS COMPLEMENTARES | E86: H | F86: 0,0131000 | G86: 15,71 | H86: 0.2
B87: PRODUÇÃO DA EQUIPE | E87: 1 | F87: CUSTO | H87: =SUM(H84:H86) -> 1.62
B88: TOTAL | H88: =H87/E87 -> 1.62
B89: BDI % | H89: =1+$M$1 -> 1.2247
B90: TOTAL DO SERVIÇO - R$ | H90: =H88*H89 -> 1.984014
A92: 7 | B92: CODEVASF | E92: COMPOSIÇÃO DE PREÇO UNITÁRIO | I92: =H101 -> 117.29 | J92: =H103 -> 143.645063
B93: OBRA: | C93: =$C$2 -> PASSAGEM MOLHADA DA PRAINHA - RIO MOSQUITO (ESTRADA PARA TALHADO - SERRANÓPOLIS DE MINAS/MG) | G93: DATA: | H93: =$H$2 -> AGOSTO / 2.021
B94: SERVIÇO: | C94: =VLOOKUP(A92,ORÇAMENTO!$A$10:$I$30,3) -> ESCAVAÇÃO MANUAL PARA BLOCO DE COROAMENTO OU SAPATA, SEM PREVISÃO DE FÔRMA | E94: SINAPI | F94: =VLOOKUP(A92,ORÇAMENTO!$A$10:$I$30,4) -> 96522 | G94: UNIDADE: | H94: =VLOOKUP(A92,ORÇAMENTO!$A$10:$I$30,5) -> M3
B96: TIPO ITEM | C96: CODIGO ITEM | D96: DESCRIÇÃO ITEM | E96: UNIDADE ITEM | F96: COEFICIENTE | G96: PRECO UNITARIO | H96: CUSTO TOTAL
B97: COMPOSICAO | C97: 88309 | D97: PEDREIRO COM ENCARGOS COMPLEMENTARES | E97: H | F97: 2,3610000 | G97: 22,09 | H97: =ROUNDDOWN(F97*G97,2) -> 52.15
B98: COMPOSICAO | C98: 88316 | D98: SERVENTE COM ENCARGOS COMPLEMENTARES | E98: H | F98: 4,1470000 | G98: 15,71 | H98: 65.14
H99: 0
B100: PRODUÇÃO DA EQUIPE | E100: 1 | F100: CUSTO | H100: =SUM(H97:H99) -> 117.29
B101: TOTAL | H101: =H100/E100 -> 117.29
B102: BDI % | H102: =1+$M$1 -> 1.2247
B103: TOTAL DO SERVIÇO - R$ | H103: =H101*H102 -> 143.645063
A105: 8 | B105: CODEVASF | E105: COMPOSIÇÃO DE PREÇO UNITÁRIO | I105: =H115 -> 6.14 | J105: =H117 -> 7.519658
B106: OBRA: | C106: =$C$2 -> PASSAGEM MOLHADA DA PRAINHA - RIO MOSQUITO (ESTRADA PARA TALHADO - SERRANÓPOLIS DE MINAS/MG) | G106: DATA: | H106: =$H$2 -> AGOSTO / 2.021
B107: SERVIÇO: | C107: =VLOOKUP(A105,ORÇAMENTO!$A$10:$I$30,3) -> CARGA, MANOBRA E DESCARGA DE SOLOS E MATERIAIS GRANULARES EM CAMINHÃO BASCULANTE - CARGA COM PÁ CARREGADEIRA E DESCARGA LIVRE | E107: SINAPI | F107: =VLOOKUP(A105,ORÇAMENTO!$A$10:$I$30,4) -> 100976 | G107: UNIDADE: | H107: =VLOOKUP(A105,ORÇAMENTO!$A$10:$I$30,5) -> M3
B109: TIPO ITEM | C109: CODIGO ITEM | D109: DESCRIÇÃO ITEM | E109: UNIDADE ITEM | F109: COEFICIENTE | G109: PRECO UNITARIO | H109: CUSTO TOTAL
B110: COMPOSICAO | C110: 5940 | D110: PÁ CARREGADEIRA SOBRE RODAS, POTÊNCIA LÍQUIDA 128 HP, CAPACIDADE DA CAÇAMBA 1,7 A 2,8 M3, PESO OPERACIONAL 11632 KG | E110: CHP | F110: 0,0083000 | G110: 155,35 | H110: =ROUNDDOWN(F110*G110,2) -> 1.28
B111: COMPOSICAO | C111: 5942 | D111: PÁ CARREGADEIRA SOBRE RODAS, POTÊNCIA LÍQUIDA 128 HP, CAPACIDADE DA CAÇAMBA 1,7 A 2,8 M3, PESO OPERACIONAL 11632 KG | E111: CHI | F111: 0,0074000 | G111: 56,76 | H111: 0.42
B112: COMPOSICAO | C112: 89883 | D112: CAMINHÃO BASCULANTE 18 M3, COM CAVALO MECÂNICO DE CAPACIDADE MÁXIMA DE TRAÇÃO COMBINADO DE 45000 KG, POTÊNCIA 330 CV, INCLUSIVE SEMIREBOQUE COM CAÇAMBA METÁLICA | E112: CHP | F112: 0,0153000 | G112: 258,45 | H112: 3.95
B113: COMPOSICAO | C113: 89884 | D113: CAMINHÃO BASCULANTE 18 M3, COM CAVALO MECÂNICO DE CAPACIDADE MÁXIMA DE TRAÇÃO COMBINADO DE 45000 KG, POTÊNCIA 330 CV, INCLUSIVE SEMIREBOQUE COM CAÇAMBA METÁLICA | E113: CHI | F113: 0,0095000 | G113: 52,02 | H113: 0.49
B114: PRODUÇÃO DA EQUIPE | E114: 1 | F114: CUSTO | H114: =SUM(H110:H113) -> 6.14
B115: TOTAL | H115: =H114/E114 -> 6.14
B116: BDI % | H116: =1+$M$1 -> 1.2247
B117: TOTAL DO SERVIÇO - R$ | H117: =H115*H116 -> 7.519658
A119: 9 | B119: CODEVASF | E119: COMPOSIÇÃO DE PREÇO UNITÁRIO | I119: =H130 -> 2.37 | J119: =H132 -> 2.902539
B120: OBRA: | C120: =$C$2 -> PASSAGEM MOLHADA DA PRAINHA - RIO MOSQUITO (ESTRADA PARA TALHADO - SERRANÓPOLIS DE MINAS/MG) | G120: DATA: | H120: =$H$2 -> AGOSTO / 2.021
B121: SERVIÇO: | C121: =VLOOKUP(A119,ORÇAMENTO!$A$10:$I$30,3) -> PREPARO DE FUNDO DE VALA COM LARGURA MAIOR OU IGUAL A 1,5 M (ACERTO DO SOLO NATURAL) | E121: SINAPI | F121: =VLOOKUP(A119,ORÇAMENTO!$A$10:$I$30,4) -> 101617 | G121: UNIDADE: | H121: =VLOOKUP(A119,ORÇAMENTO!$A$10:$I$30,5) -> M2
B123: TIPO ITEM | C123: CODIGO ITEM | D123: DESCRIÇÃO ITEM | E123: UNIDADE ITEM | F123: COEFICIENTE | G123: PRECO UNITARIO | H123: CUSTO TOTAL
B124: COMPOSICAO | C124: 88309 | D124: PEDREIRO COM ENCARGOS COMPLEMENTARES | E124: H | F124: 0,0507000 | G124: 22,09 | H124: =ROUNDDOWN(F124*G124,2) -> 1.11
B125: COMPOSICAO | C125: 88316 | D125: SERVENTE COM ENCARGOS COMPLEMENTARES | E125: H | F125: 0,0760000 | G125: 15,71 | H125: 1.19
B126: COMPOSICAO | C126: 91533 | D126: COMPACTADOR DE SOLOS DE PERCUSSÃO (SOQUETE) COM MOTOR A GASOLINA 4 TEMPOS, POTÊNCIA 4 CV | E126: CHP | F126: 0,0016000 | G126: 28,17 | H126: 0.04
B127: COMPOSICAO | C127: 91534 | D127: COMPACTADOR DE SOLOS DE PERCUSSÃO (SOQUETE) COM MOTOR A GASOLINA 4 TEMPOS, POTÊNCIA 4 CV | E127: CHI | F127: 0,0016000 | G127: 21,12 | H127: 0.03
H128: 0
B129: PRODUÇÃO DA EQUIPE | E129: 1 | F129: CUSTO | H129: =SUM(H124:H128) -> 2.37
B130: TOTAL | H130: =H129/E129 -> 2.37
B131: BDI % | H131: =1+$M$1 -> 1.2247
B132: TOTAL DO SERVIÇO - R$ | H132: =H130*H131 -> 2.902539
A134: 10 | B134: CODEVASF | E134: COMPOSIÇÃO DE PREÇO UNITÁRIO | I134: =H145 -> 131.83 | J134: =H147 -> 161.452201
B135: OBRA: | C135: =$C$2 -> PASSAGEM MOLHADA DA PRAINHA - RIO MOSQUITO (ESTRADA PARA TALHADO - SERRANÓPOLIS DE MINAS/MG) | G135: DATA: | H135: =$H$2 -> AGOSTO / 2.021
B136: SERVIÇO: | C136: =VLOOKUP(A134,ORÇAMENTO!$A$10:$I$30,3) -> LASTRO DE BRITA, ESPESSURA 5CM | E136: SINAPI | F136: =VLOOKUP(A134,ORÇAMENTO!$A$10:$I$30,4) -> 96622 | G136: UNIDADE: | H136: =VLOOKUP(A134,ORÇAMENTO!$A$10:$I$30,5) -> M3
B138: TIPO ITEM | C138: CODIGO ITEM | D138: DESCRIÇÃO ITEM | E138: UNIDADE ITEM | F138: COEFICIENTE | G138: PRECO UNITARIO | H138: CUSTO TOTAL
B139: INSUMO | C139: 4718 | D139: PEDRA BRITADA N. 2 (19 A 38 MM) POSTO PEDREIRA/FORNECEDOR, SEM FRETE | E139: M3 | F139: 1,1300000 | G139: 87,14 | H139: =ROUNDDOWN(F139*G139,2) -> 98.46
B140: COMPOSICAO | C140: 88309 | D140: PEDREIRO COM ENCARGOS COMPLEMENTARES | E140: H | F140: 1,2170000 | G140: 22,09 | H140: 26.88
B141: COMPOSICAO | C141: 88316 | D141: SERVENTE COM ENCARGOS COMPLEMENTARES | E141: H | F141: 0,3940000 | G141: 15,71 | H141: 6.18
B142: COMPOSICAO | C142: 91277 | D142: PLACA VIBRATÓRIA REVERSÍVEL COM MOTOR 4 TEMPOS A GASOLINA, FORÇA CENTRÍFUGA DE 25 KN (2500 KGF), POTÊNCIA 5,5 CV | E142: CHP | F142: 0,0320000 | G142: 9,64 | H142: 0.3
B143: COMPOSICAO | C143: 91278 | D143: PLACA VIBRATÓRIA REVERSÍVEL COM MOTOR 4 TEMPOS A GASOLINA, FORÇA CENTRÍFUGA DE 25 KN (2500 KGF), POTÊNCIA 5,5 CV | E143: CHI | F143: 0,0300000 | G143: 0,52 | H143: 0.01
B144: PRODUÇÃO DA EQUIPE | E144: 1 | F144: CUSTO | H144: =SUM(H139:H143) -> 131.83
B145: TOTAL | H145: =H144/E144 -> 131.83
B146: BDI % | H146: =1+$M$1 -> 1.2247
B147: TOTAL DO SERVIÇO - R$ | H147: =H145*H146 -> 161.452201
A149: 11 | B149: CODEVASF | E149: COMPOSIÇÃO DE PREÇO UNITÁRIO | I149: =H166 -> 79.55 | J149: =H168 -> 97.424885
B150: OBRA: | C150: =$C$2 -> PASSAGEM MOLHADA DA PRAINHA - RIO MOSQUITO (ESTRADA PARA TALHADO - SERRANÓPOLIS DE MINAS/MG) | G150: DATA: | H150: =$H$2 -> AGOSTO / 2.021
B151: SERVIÇO: | C151: =VLOOKUP(A149,ORÇAMENTO!$A$10:$I$30,3) -> FABRICAÇÃO, MONTAGEM E DESMONTAGEM DE FÔRMA PARA VIGAS EM CHAPA DE MADEIRA COMPENSADA RESINADA, E=17 MM | E151: SINAPI | F151: =VLOOKUP(A149,ORÇAMENTO!$A$10:$I$30,4) -> 96542 | G151: UNIDADE: | H151: =VLOOKUP(A149,ORÇAMENTO!$A$10:$I$30,5) -> M2
B153: TIPO ITEM | C153: CODIGO ITEM | D153: DESCRIÇÃO ITEM | E153: UNIDADE ITEM | F153: COEFICIENTE | G153: PRECO UNITARIO | H153: CUSTO TOTAL
B154: INSUMO | C154: 1358 | D154: CHAPA DE MADEIRA COMPENSADA RESINADA PARA FORMA DE CONCRETO, DE *2,2 X 1,1* M, E = 17 MM | E154: M2 | F154: 0,3150000 | G154: 50,71 | H154: =ROUNDDOWN(F154*G154,2) -> 15.97
B155: INSUMO | C155: 2692 | D155: DESMOLDANTE PROTETOR PARA FORMAS DE MADEIRA, DE BASE OLEOSA EMULSIONADA EM AGUA | E155: L | F155: 0,0100000 | G155: 3,98 | H155: 0.03
B156: INSUMO | C156: 4491 | D156: PONTALETE *7,5 X 7,5* CM EM PINUS, MISTA OU EQUIVALENTE DA REGIAO - BRUTA | E156: M | F156: 1,2180000 | G156: 7,23 | H156: 8.8
B157: INSUMO | C157: 4517 | D157: SARRAFO *2,5 X 7,5* CM EM PINUS, MISTA OU EQUIVALENTE DA REGIAO - BRUTA | E157: M | F157: 0,7220000 | G157: 2,53 | H157: 1.82
B158: INSUMO | C158: 5073 | D158: PREGO DE ACO POLIDO COM CABECA 17 X 24 | E158: KG | F158: 0,0190000 | G158: 18,97 | H158: 0.36
B159: INSUMO | C159: 20247 | D159: PREGO DE ACO POLIDO COM CABECA 15 X 15 | E159: KG | F159: 0,0040000 | G159: 20,61 | H159: 0.08
B160: INSUMO | C160: 40304 | D160: PREGO DE ACO POLIDO CABECA DUPLA 17 X 27 | E160: KG | F160: 0,0100000 | G160: 22,98 | H160: 0.22
B161: COMPOSICAO | C161: 88239 | D161: AJUDANTE DE CARPINTEIRO COM ENCARGOS COMPLEMENTARES | E161: H | F161: 0,7250000 | G161: 18,07 | H161: 13.1
B162: COMPOSICAO | C162: 88262 | D162: CARPINTEIRO DE FORMAS COM ENCARGOS COMPLEMENTARES | E162: H | F162: 1,7490000 | G162: 21,87 | H162: 38.25
B163: COMPOSICAO | C163: 91692 | D163: SERRA CIRCULAR DE BANCADA COM MOTOR ELÉTRICO POTÊNCIA DE 5HP, COM COIFA PARA DISCO 10" | E163: CHP | F163: 0,0140000 | G163: 23,89 | H163: 0.33
B164: COMPOSICAO | C164: 91693 | D164: SERRA CIRCULAR DE BANCADA COM MOTOR ELÉTRICO POTÊNCIA DE 5HP, COM COIFA PARA DISCO 10" | E164: CHI | F164: 0,0290000 | G164: 20,47 | H164: 0.59
B165: PRODUÇÃO DA EQUIPE | E165: 1 | F165: CUSTO | H165: =SUM(H154:H164) -> 79.55
B166: TOTAL | H166: =H165/E165 -> 79.55
B167: BDI % | H167: =1+$M$1 -> 1.2247
B168: TOTAL DO SERVIÇO - R$ | H168: =H166*H167 -> 97.424885
A170: 12 | B170: CODEVASF | E170: COMPOSIÇÃO DE PREÇO UNITÁRIO | I170: =H181 -> 20.34 | J170: =H183 -> 24.910398
B171: OBRA: | C171: =$C$2 -> PASSAGEM MOLHADA DA PRAINHA - RIO MOSQUITO (ESTRADA PARA TALHADO - SERRANÓPOLIS DE MINAS/MG) | G171: DATA: | H171: =$H$2 -> AGOSTO / 2.021
B172: SERVIÇO: | C172: =VLOOKUP(A170,ORÇAMENTO!$A$10:$I$30,3) -> ARMAÇÃO DE BLOCO, VIGA BALDRAME E SAPATA UTILIZANDO AÇO CA-60 DE 4.2 OU 5 MM - MONTAGEM | E172: SINAPI | F172: =VLOOKUP(A170,ORÇAMENTO!$A$10:$I$30,4) -> 96543 | G172: UNIDADE: | H172: =VLOOKUP(A170,ORÇAMENTO!$A$10:$I$30,5) -> KG
B174: TIPO ITEM | C174: CODIGO ITEM | D174: DESCRIÇÃO ITEM | E174: UNIDADE ITEM | F174: COEFICIENTE | G174: PRECO UNITARIO | H174: CUSTO TOTAL
B175: INSUMO | C175: 39017 | D175: ESPACADOR / DISTANCIADOR CIRCULAR COM ENTRADA LATERAL, EM PLASTICO, PARA VERGALHAO *4,2 A 12,5* MM, COBRIMENTO 20 MM | E175: UN | F175: 1,9665000 | G175: 0,19 | H175: =ROUNDDOWN(F175*G175,2) -> 0.37
B176: INSUMO | C176: 43132 | D176: ARAME RECOZIDO 16 BWG, D = 1,65 MM (0,016 KG/M) OU 18 BWG, D = 1,25 MM (0,01 KG/M) | E176: KG | F176: 0,0250000 | G176: 26,90 | H176: 0.67
B177: COMPOSICAO | C177: 88238 | D177: AJUDANTE DE ARMADOR COM ENCARGOS COMPLEMENTARES | E177: H | F177: 0,0635000 | G177: 16,52 | H177: 1.04
B178: COMPOSICAO | C178: 88245 | D178: ARMADOR COM ENCARGOS COMPLEMENTARES | E178: H | F178: 0,1945000 | G178: 21,94 | H178: 4.26
B179: COMPOSICAO | C179: 92791 | D179: CORTE E DOBRA DE AÇO CA-60, DIÂMETRO DE 5,0 MM - INCLUSIVE FORNECIMENTO | E179: KG | F179: 1,0000000 | G179: 14,00 | H179: 14
B180: PRODUÇÃO DA EQUIPE | E180: 1 | F180: CUSTO | H180: =SUM(H175:H179) -> 20.34
B181: TOTAL | H181: =H180/E180 -> 20.34
B182: BDI % | H182: =1+$M$1 -> 1.2247
B183: TOTAL DO SERVIÇO - R$ | H183: =H181*H182 -> 24.910398
A185: 13 | B185: CODEVASF | E185: COMPOSIÇÃO DE PREÇO UNITÁRIO | I185: =H197 -> 16.79 | J185: =H199 -> 20.562713
B186: OBRA: | C186: =$C$2 -> PASSAGEM MOLHADA DA PRAINHA - RIO MOSQUITO (ESTRADA PARA TALHADO - SERRANÓPOLIS DE MINAS/MG) | G186: DATA: | H186: =$H$2 -> AGOSTO / 2.021
B187: SERVIÇO: | C187: =VLOOKUP(A185,ORÇAMENTO!$A$10:$I$30,3) -> ARMAÇÃO DE BLOCO, VIGA BALDRAME OU SAPATA UTILIZANDO AÇO CA-50 DE 10MM - MONTAGEM | E187: SINAPI | F187: =VLOOKUP(A185,ORÇAMENTO!$A$10:$I$30,4) -> 96546 | G187: UNIDADE: | H187: =VLOOKUP(A185,ORÇAMENTO!$A$10:$I$30,5) -> KG
B189: TIPO ITEM | C189: CODIGO ITEM | D189: DESCRIÇÃO ITEM | E189: UNIDADE ITEM | F189: COEFICIENTE | G189: PRECO UNITARIO | H189: CUSTO TOTAL
B190: INSUMO | C190: 39017 | D190: ESPACADOR / DISTANCIADOR CIRCULAR COM ENTRADA LATERAL, EM PLASTICO, PARA VERGALHAO *4,2 A 12,5* MM, COBRIMENTO 20 MM | E190: UN | F190: 0,4655000 | G190: 0,19 | H190: =ROUNDDOWN(F190*G190,2) -> 0.08
B191: INSUMO | C191: 43132 | D191: ARAME RECOZIDO 16 BWG, D = 1,65 MM (0,016 KG/M) OU 18 BWG, D = 1,25 MM (0,01 KG/M) | E191: KG | F191: 0,0250000 | G191: 26,90 | H191: 0.67
B192: COMPOSICAO | C192: 88238 | D192: AJUDANTE DE ARMADOR COM ENCARGOS COMPLEMENTARES | E192: H | F192: 0,0290000 | G192: 16,52 | H192: 0.47
B193: COMPOSICAO | C193: 88245 | D193: ARMADOR COM ENCARGOS COMPLEMENTARES | E193: H | F193: 0,0890000 | G193: 21,94 | H193: 1.95
B194: COMPOSICAO | C194: 92794 | D194: CORTE E DOBRA DE AÇO CA-50, DIÂMETRO DE 10,0 MM - INCLUSIVE FORNECIMENTO | E194: KG | F194: 1,0000000 | G194: 13,62 | H194: 13.62
H195: 0
B196: PRODUÇÃO DA EQUIPE | E196: 1 | F196: CUSTO | H196: =SUM(H190:H195) -> 16.79
B197: TOTAL | H197: =H196/E196 -> 16.79
B198: BDI % | H198: =1+$M$1 -> 1.2247
B199: TOTAL DO SERVIÇO - R$ | H199: =H197*H198 -> 20.562713
A201: 14 | B201: CODEVASF | E201: COMPOSIÇÃO DE PREÇO UNITÁRIO | I201: =H215 -> 394.17 | J201: =H217 -> 482.739999
B202: OBRA: | C202: =$C$2 -> PASSAGEM MOLHADA DA PRAINHA - RIO MOSQUITO (ESTRADA PARA TALHADO - SERRANÓPOLIS DE MINAS/MG) | G202: DATA: | H202: =$H$2 -> AGOSTO / 2.021
B203: SERVIÇO: | C203: =VLOOKUP(A201,ORÇAMENTO!$A$10:$I$30,3) -> CONCRETO FCK = 25MPA - PREPARO MECÂNICO COM BETONEIRA | E203: SINAPI | F203: =VLOOKUP(A201,ORÇAMENTO!$A$10:$I$30,4) -> 94965 | G203: UNIDADE: | H203: =VLOOKUP(A201,ORÇAMENTO!$A$10:$I$30,5) -> M3
B205: TIPO ITEM | C205: CODIGO ITEM | D205: DESCRIÇÃO ITEM | E205: UNIDADE ITEM | F205: COEFICIENTE | G205: PRECO UNITARIO | H205: CUSTO TOTAL
B206: INSUMO | C206: 370 | D206: AREIA MEDIA - POSTO JAZIDA/FORNECEDOR (RETIRADO NA JAZIDA, SEM TRANSPORTE) | E206: M3 | F206: 0,7229000 | G206: 75,00 | H206: =ROUNDDOWN(F206*G206,2) -> 54.21
B207: INSUMO | C207: 1379 | D207: CIMENTO PORTLAND COMPOSTO CP II-32 | E207: KG | F207: 362,6579000 | G207: 0,62 | H207: 224.84
B208: INSUMO | C208: 4721 | D208: PEDRA BRITADA N. 1 (9,5 a 19 MM) POSTO PEDREIRA/FORNECEDOR, SEM FRETE | E208: M3 | F208: 0,5934000 | G208: 86,68 | H208: 51.43
B209: COMPOSICAO | C209: 88316 | D209: SERVENTE COM ENCARGOS COMPLEMENTARES | E209: H | F209: 2,3117000 | G209: 15,71 | H209: 36.31
B210: COMPOSICAO | C210: 88377 | D210: OPERADOR DE BETONEIRA ESTACIONÁRIA / MISTURADOR COM ENCARGOS COMPLEMENTARES | E210: H | F210: 1,4637000 | G210: 17,52 | H210: 25.64
B211: COMPOSICAO | C211: 88830 | D211: BETONEIRA CAPACIDADE NOMINAL DE 400 L, CAPACIDADE DE MISTURA 280 L, MOTOR ELÉTRICO TRIFÁSICO POTÊNCIA DE 2 CV, SEM CARREGADOR | E211: CHP | F211: 0,7534000 | G211: 1,99 | H211: 1.49
B212: COMPOSICAO | C212: 88831 | D212: BETONEIRA CAPACIDADE NOMINAL DE 400 L, CAPACIDADE DE MISTURA 280 L, MOTOR ELÉTRICO TRIFÁSICO POTÊNCIA DE 2 CV, SEM CARREGADOR | E212: CHI | F212: 0,7103000 | G212: 0,36 | H212: 0.25
H213: 0
B214: PRODUÇÃO DA EQUIPE | E214: 1 | F214: CUSTO | H214: =SUM(H206:H213) -> 394.17
B215: TOTAL | H215: =H214/E214 -> 394.17
B216: BDI % | H216: =1+$M$1 -> 1.2247
B217: TOTAL DO SERVIÇO - R$ | H217: =H215*H216 -> 482.739999
A219: 15 | B219: CODEVASF | E219: COMPOSIÇÃO DE PREÇO UNITÁRIO | I219: =H231 -> 186.26 | J219: =H233 -> 228.112622
B220: OBRA: | C220: =$C$2 -> PASSAGEM MOLHADA DA PRAINHA - RIO MOSQUITO (ESTRADA PARA TALHADO - SERRANÓPOLIS DE MINAS/MG) | G220: DATA: | H220: =$H$2 -> AGOSTO / 2.021
B221: SERVIÇO: | C221: =VLOOKUP(A219,ORÇAMENTO!$A$10:$I$30,3) -> ENSECADEIRA COM SACOS DE RÁFIA, INCLUSIVE FORNECIMENTO DO MATERIAL DE ENCHIMENTO | E221: SINAPI | F221: =VLOOKUP(A219,ORÇAMENTO!$A$10:$I$30,4) -> C2767a | G221: UNIDADE: | H221: =VLOOKUP(A219,ORÇAMENTO!$A$10:$I$30,5) -> M3
B223: TIPO ITEM | C223: CODIGO ITEM | D223: DESCRIÇÃO ITEM | E223: UNIDADE ITEM | F223: COEFICIENTE | G223: PRECO UNITARIO | H223: CUSTO TOTAL
B224: INSUMO | C224: 37526 | D224: SACO DE RAFIA NOVO, LISO (SEM CLICHE), *60 x 90* CM | E224: UNID. | F224: 28 | G224: 2.66 | H224: =ROUNDDOWN(F224*G224,2) -> 74.48
B225: INSUMO | C225: I2543 | D225: FIO PARA COSTURAR SACO | E225: M | F225: 24 | G225: 0.11 | H225: 2.64
B226: INSUMO | C226: I0036 | D226: AGULHA 125 PARA COSTURAR SACO | E226: UM | F226: 0.2 | G226: 0.94 | H226: 0.18
B227: INSUMO | C227: 368 | D227: AREIA PARA ATERRO - POSTO JAZIDA/FORNECEDOR (RETIRADO NA JAZIDA, SEM TRANSPORTE) | E227: M3 | F227: 1.025 | G227: 45 | H227: 46.12
B228: COMPOSICAO | C228: 88316 | D228: SERVENTE COM ENCARGOS COMPLEMENTARES | E228: H | F228: 4 | G228: 15,71 | H228: 62.84
H229: 0
... 58 more rows

Sheet BDI SERV
B1: DETALHAMENTO DO BDI - SERVIÇOS
B4: Item | C4: Descrição dos Serviços | D4: % | E4: %
D5: PV | E5: CD
B7: 1 | C7: ADMINISTRAÇÃO CENTRAL | E7: 4
B8: 1.1 | C8: ESCRITÓRIO CENTRAL
B9: 1.2 | C9: VIAGENS
B10: 1.3 | C10: OUTROS
B12: 2 | C12: IMPOSTOS E TAXAS | D12: =SUM(D13:D16) -> 6.15 | E12: =SUM(E13:E16) -> 7.69
B13: 2.1 | C13: ISS (*) | D13: 2.5 | E13: =ROUND(D13*1.2515,2) -> 3.13
B14: 2.2 | C14: PIS | D14: 0.65 | E14: 0.81
B15: 2.3 | C15: Cofins | D15: 3 | E15: 3.75
B16: 2.4 | C16: CONTRIBUIÇÃO PREVIDENCIÁRIA SOBRE A RENDA BRUTA | D16: 0 | E16: 0
B18: 3 | C18: TAXA DE RISCO | E18: =SUM(E19:E22) -> 2.28
B19: 3.1 | C19: SEGURO | E19: 0.41
B20: 3.2 | C20: RISCO | E20: 1.46
B21: 3.3 | C21: GARANTIA | E21: 0.41
B23: 4 | C23: DESPESAS FINANCEIRAS | E23: 0.94
B25: 5 | C25: LUCRO | E25: 7.14
C27: BDI - CALCULADO | E27: =ROUND((((1+(E7+E18)/100)*(1+E23/100)*(1+E25/100)/(1-D12/100)-1)*100),2) -> 22.47
A29: BDI = ((1+((AC+S+R+G)/100))x(1+DF/100)x(1+L/100)/(1-I/100)-1)*100
B31: BDI (CALCULADO): | D31: =ROUND((((1+((E7+E18)/100))*(1+E23/100)*(1+E25/100))/(1-D12/100)-1)*100,2) -> 22.47 | E31: %
A33: (*) ISS CONFORME LEI COMPLEMENTAR Nº 001 / 2010 - DECLARAÇÃO EM ANEXO (CONSIDERANDO AS DEDUÇÕES PREVISTAS NOS ART. 107 E 108 - QUANTIDADE ESTIMADA DE MATERIAL: 50%)
A37: BDI EM CONFORMIDADE COM OS ACÓRDÃOS Nº 2369/2011 e ACÓRDÃO Nº 2.622/2013 - TCU - PLENÁRIO

Sheet CRONOGRAMA
B1: CRONOGRAMA FÍSICO-FINANCEIRO
B2: OBRA: | C2: =ORÇAMENTO!C5 -> PASSAGEM MOLHADA DA PRAINHA - RIO MOSQUITO (ESTRADA PARA TALHADO - SERRANÓPOLIS DE MINAS/MG) | F2: VALOR: | G2: =ORÇAMENTO!I31 -> 153483.92
F3: PRAZO: | G3: 90 DIAS
B5: ITEM | C5: ETAPAS/DESCRIÇAO | D5: FISICO/ FINANCEIRO | E5: TOTAL ETAPAS | F5: MÊS 1 | G5: MÊS 2 | H5: MÊS 3 | I5: TOTAL
A6: A | B6: =VLOOKUP(A6,ORÇAMENTO!$A$9:$I$31,2) -> 1 | C6: =VLOOKUP(A6,ORÇAMENTO!$A$9:$I$31,3) -> SERVIÇOS PRELIMINARES | D6: FISICO | E6: =ROUND(E7/$G$2,4) -> 0.1984 | F6: 0.5 | G6: 0.4 | H6: 0.1 | I6: =SUM(F6:H6) -> 1
D7: FINANCEIRO | E7: =ORÇAMENTO!I9 -> 30451.4 | F7: =ROUND($E$7*F6,2) -> 15225.7 | G7: 12180.56 | H7: 3045.14 | I7: 30451.4
A8: B | B8: =VLOOKUP(A8,ORÇAMENTO!$A$9:$I$31,2) -> 2 | C8: =VLOOKUP(A8,ORÇAMENTO!$A$9:$I$31,3) -> TERRAPLANAGEM E ESTRUTURA | D8: FISICO | E8: =ROUND(E9/$G$2,4) -> 0.7975 | F8: 0.3 | G8: 0.6 | H8: 0.1 | I8: 1
D9: FINANCEIRO | E9: =ORÇAMENTO!I15 -> 122401.21 | F9: =ROUND($E$9*F8,2) -> 36720.36 | G9: 73440.73 | H9: 12240.12 | I9: 122401.21
A10: c | B10: =VLOOKUP(A10,ORÇAMENTO!$A$9:$I$31,2) -> 3 | C10: =VLOOKUP(A10,ORÇAMENTO!$A$9:$I$31,3) -> OBRAS COMPLEMENTARES | D10: FISICO | E10: =ROUND(E11/$G$2,4) -> 0.0041 | G10: 1 | I10: 1
D11: FINANCEIRO | E11: =ORÇAMENTO!I29 -> 631.31 | F11: =ROUND($E$11*F10,2) -> 0 | G11: 631.31 | H11: 0 | I11: 631.31
B12: TOTAL | D12: FISICO | E12: =SUM(F12:H12) -> 1 | F12: =F13/E13 -> 0.3384462685 | G12: =G13/E13 -> 0.561965058 | H12: =H13/E13 -> 0.09958867352 | I12: 1
D13: FINANCEIRO | E13: =E9+E7+E11 -> 153483.92 | F13: =F9+F7+F11 -> 51946.06 | G13: 86252.6 | H13: 15285.26 | I13: =SUM(F13:H13) -> 153483.92
B15: OBSERVAÇÕES:
